fUST/lending_fUST_20240510
["ID","MTS","AMOUNT","RATE_DAILY","PERIOD"]
[326760697,1715326244217,-447.67704854,0.00032,4]
[326760698,1715326244227,-590.0,0.000324,2]
[326760699,1715326244236,-294.2,0.0003278,7]
[326760700,1715326244245,-154.16851109,0.00032826,7]
[326760701,1715326244255,-467.00386112,0.00034,4]
[326760702,1715326244264,-190.10084825,0.00035,4]
[326760703,1715326244274,-154.7215013,0.00035,4]
[326760704,1715326244283,-209.17986,0.00035011,2]
[326760705,1715326244293,-168.85101534,0.00035516,2]
[326760706,1715326244302,-25842.509761,0.00035616,15]
[326760707,1715326244311,-337.533824,0.00035616,120]
[326760708,1715326244320,-11630.7,0.00035616,3]
[326760709,1715326244329,-16416.15,0.00035616,3]
[326760710,1715326244338,-251.7223725,0.00035721,2]
[326760745,1715326247867,-23.23387554,0.00016995,2]
[326760746,1715326268545,154.7215013,9.999e-05,2]
[326760747,1715326295090,2555.36,0.0001502,2]
[326760748,1715326347443,154.7215013,0.0001502,2]
[326760749,1715326365671,287.02543444,0.0001502,2]
[326760760,1715326975389,288.53731085,0.000137,2]
[326760761,1715327164930,2104.10620135,0.00015,2]
[326760762,1715327182815,467.28,0.00010959,2]
[326760764,1715327259871,151.0,0.00015,2]
[326760765,1715327306915,186.62571484,9.999e-05,2]
[326760766,1715327325060,-200.0,0.00024658,15]
[326760768,1715327364124,-1882.81807245,0.00016767,2]
[326760769,1715327364146,-288.53731085,0.00016767,2]
[326760770,1715327364167,-1566.2692447,0.00016768,2]
[326760809,1715327432192,-2593.72337385,0.00016766,2]
[326760811,1715327432202,-59315.98983434,0.00016767,2]
[326760813,1715327432211,-3699.53683118,0.00016768,2]
[326760818,1715327432247,-342.767362,0.00016768,2]
[326760852,1715327438050,-3000.0,0.00016768,2]
[326760853,1715327438062,-841.88746162,0.00016768,2]
[326760854,1715327438071,-573.1497672,0.00016769,2]
[326760855,1715327438080,-153.59831445,0.00016863,2]
[326760880,1715327509318,158.22736457,9.999e-05,2]
[326760881,1715327542423,872.76,0.00010959,2]
[326760882,1715327548779,1494.22027638,9.999e-05,2]
[326760887,1715327593841,1624.38458646,9.999e-05,2]
[326760889,1715327676989,545.43,0.00010959,2]
[326760890,1715327688013,454.53,0.00010959,2]
[326760891,1715327698506,378.77,0.00010959,2]
[326760892,1715327709238,315.64,0.00010959,2]
[326760893,1715327730522,404.23,0.00010959,2]
[326760894,1715327734473,1042.0,9.999e-05,2]
[326760895,1715327741869,336.86,0.00010959,2]
[326760896,1715327752349,280.72,0.00010959,2]
[326760897,1715327762885,233.93,0.00010959,2]
[326760898,1715327773394,194.94,0.00010959,2]
[326760899,1715327783893,162.45,0.00010959,2]
[326760900,1715327794388,812.29,0.00010959,2]
[326760901,1715327907604,404.23,0.00010959,2]
[326760902,1715327918106,336.86,0.00010959,2]
[326760903,1715327939408,842.16,0.00010959,2]
[326760904,1715327941433,2932.4287872,0.00014544,2]
[326760905,1715327982010,24900.0,0.00014544,2]
[326760907,1715328083734,842.16,0.00010959,2]
[326760908,1715328153247,319.7598723,0.00014566,2]
[326760909,1715328225022,625.59214919,0.000266,25]
[326760911,1715328281964,1301.8204998,0.00014564,2]
[326760918,1715328324933,154.70605849,0.00014564,2]
[326760920,1715328342893,154.70605849,0.00014564,2]
[326760921,1715328362886,183.7319325,0.00014564,2]
[326760922,1715328443198,431.8,0.00010959,2]
[326760923,1715328464722,179.92,0.00010959,2]
[326760924,1715328475247,899.6,0.00010959,2]
[326760925,1715328478424,6912.4015567,0.00014483,2]
[326760927,1715328537165,179.91,0.00010959,2]
[326760931,1715328547642,899.58,0.00010959,2]
[326760932,1715328551277,1000.15956336,0.0001,2]
[326760933,1715328551306,-852.39034,0.00015097,2]
[326760975,1715328632257,-2593.72337385,0.00015094,2]
[326760977,1715328632266,-7884.1916548,0.00015095,2]
[326760979,1715328632275,-365.558676,0.00015103,2]
[326760981,1715328632284,-59315.98983434,0.00015483,2]
[326760983,1715328632293,-62525.03509015,0.00015484,2]
[326760985,1715328632302,-167.343888,0.0001589,2]
[326760987,1715328632311,-189.33595798,0.00016666,2]
[326760989,1715328632320,-528.17350792,0.00016753,2]
[326760991,1715328632329,-2104.72344677,0.00016755,2]
[326760993,1715328632338,-631.41143464,0.00016859,2]
[326760995,1715328632347,-619.01976516,0.0001686,2]
[326760997,1715328632356,-443.15710435,0.0001686,2]
[326760999,1715328632367,-417.79721706,0.0001686,2]
[326761001,1715328632378,-986.92358385,0.0001686,2]
[326761003,1715328632387,-158.49326518,0.00016861,2]
[326761005,1715328632396,-351.60918481,0.00016861,2]
[326761007,1715328632404,-1375.21450856,0.00016862,2]
[326761009,1715328632414,-164.75841237,0.00016863,2]
[326761011,1715328632423,-1706.57429144,0.00016863,2]
[326761012,1715328632432,-1152.31540469,0.00016864,2]
[326761013,1715328632441,-186.57237398,0.00016866,2]
[326761014,1715328632450,-630.51274988,0.00016866,2]
[326761056,1715328638454,-9661.01558217,0.00016866,2]
[326761057,1715328638464,-816.74367356,0.00016866,2]
[326761059,1715328638473,-744.57696609,0.00016872,2]
[326761061,1715328638482,-1000.0,0.00016975,3]
[326761062,1715328638491,-713.0309286,0.00017,2]
[326761063,1715328638501,-154.84423191,0.00018,2]
[326761065,1715328638510,-894.51331095,0.00018,2]
[326761067,1715328638519,-604.78532662,0.000185,2]
[326761068,1715328638528,-150.0,0.000189,2]
[326761069,1715328638538,-500.0,0.00019178,2]
[326761070,1715328638546,-500.0,0.00019178,2]
[326761071,1715328638555,-536.50722505,0.00019178,2]
[326761072,1715328638564,-170.723025,0.00019178,2]
[326761073,1715328638574,-500.0,0.00019178,2]
[326761074,1715328638583,-500.0,0.00019178,2]
[326761075,1715328638592,-500.0,0.00019178,2]
[326761076,1715328638601,-343.05006901,0.00019178,2]
[326761077,1715328638609,-500.0,0.00019178,2]
[326761078,1715328638620,-500.0,0.00019178,2]
[326761079,1715328638629,-500.0,0.00019178,2]
[326761080,1715328638638,-500.0,0.00019178,2]
[326761081,1715328638647,-500.0,0.00019178,2]
[326761082,1715328638655,-500.0,0.00019178,2]
[326761083,1715328638664,-500.0,0.00019178,2]
[326761084,1715328638673,-500.0,0.00019178,2]
[326761085,1715328638682,-500.0,0.00019178,2]
[326761086,1715328638691,-489.23070445,0.00019178,2]
[326761087,1715328638700,-500.0,0.00019178,2]
[326761088,1715328638709,-500.0,0.00019178,2]
[326761089,1715328638718,-500.0,0.00019178,2]
[326761090,1715328638727,-500.0,0.00019178,2]
[326761091,1715328638736,-500.0,0.00019178,2]
[326761092,1715328638745,-500.0,0.00019178,2]
[326761093,1715328638753,-500.0,0.00019178,2]
[326761094,1715328638762,-500.0,0.00019178,2]
[326761095,1715328638771,-500.0,0.00019178,2]
[326761096,1715328638780,-500.0,0.00019178,2]
[326761097,1715328638789,-500.0,0.00019178,2]
[326761098,1715328638798,-500.0,0.00019178,2]
[326761099,1715328638807,-500.0,0.00019178,2]
[326761100,1715328638816,-500.0,0.00019178,2]
[326761101,1715328638826,-500.0,0.00019178,2]
[326761102,1715328638838,-500.0,0.00019178,2]
[326761103,1715328638847,-500.0,0.00019178,2]
[326761104,1715328638855,-500.0,0.00019178,2]
[326761105,1715328638865,-500.0,0.00019178,2]
[326761106,1715328638877,-216.41049314,0.00019178,2]
[326761107,1715328638886,-500.0,0.00019178,2]
[326761108,1715328638895,-500.0,0.00019178,2]
[326761109,1715328638905,-216.41049314,0.00019178,2]
[326761110,1715328638914,-500.0,0.00019178,2]
[326761111,1715328638924,-500.0,0.00019178,2]
[326761112,1715328638933,-216.41049314,0.00019178,2]
[326761113,1715328638941,-818.14050438,0.00019987,2]
[326761114,1715328638950,-3056.17446337,0.00019988,2]
[326761115,1715328638960,-309.135423,0.00019997,2]
[326761116,1715328638969,-380.05955451,0.0002,2]
[326761117,1715328638977,-1558.94506613,0.0002,2]
[326761118,1715328638986,-200.0,0.0002,2]
[326761119,1715328638995,-3016.60000004,0.0002,2]
[326761120,1715328639005,-225.0,0.00021918,2]
[326761121,1715328639014,-225.0,0.00021918,2]
[326761122,1715328639023,-166.666666,0.00021918,2]
[326761123,1715328639032,-159.4535182,0.00022,2]
[326761124,1715328639042,-263.8,0.00022163,2]
[326761125,1715328639051,-167.343888,0.00022264,2]
[326761126,1715328639060,-166.666666,0.00022431,2]
[326761127,1715328639069,-365.558676,0.00022654,2]
[326761128,1715328639078,-166.666666,0.00022944,2]
[326761129,1715328639087,-714.97924015,0.00023,2]
[326761130,1715328639096,-166.666666,0.00023456,2]
[326761131,1715328639105,-166.666666,0.00023969,2]
[326761132,1715328639114,-166.666666,0.00024482,2]
[326761133,1715328639126,-167.10326178,0.00025,2]
[326761134,1715328639135,-400.10978683,0.00025,2]
[326761135,1715328639144,-936.47636988,0.000266,2]
[326761136,1715328639153,-186.85286601,0.00027,2]
[326761137,1715328639162,-263.8,0.00027321,5]
[326761138,1715328639171,-221.20105551,0.00028,2]
[326761139,1715328639180,-6299.9,0.00028,2]
[326761140,1715328639189,-167.343888,0.00028637,2]
[326761141,1715328639198,-500.0,0.00029999,2]
[326761142,1715328639207,-500.0,0.00029999,2]
[326761143,1715328639216,-536.24941709,0.00029999,2]
[326761144,1715328639225,-500.0,0.00029999,2]
[326761145,1715328639234,-500.0,0.00029999,2]
[326761146,1715328639243,-500.0,0.00029999,2]
[326761147,1715328639252,-500.0,0.00029999,2]
[326761148,1715328639261,-500.0,0.00029999,2]
[326761149,1715328639270,-500.0,0.00029999,2]
[326761150,1715328639279,-500.0,0.00029999,2]
[326761151,1715328639288,-500.0,0.00029999,2]
[326761152,1715328639298,-500.0,0.00029999,2]
[326761153,1715328639307,-500.0,0.00029999,2]
[326761154,1715328639316,-500.0,0.00029999,2]
[326761155,1715328639325,-17197.76503125,0.0003,10]
[326761156,1715328639334,-154.16851109,0.00031725,7]
[326761157,1715328639343,-512.42429802,0.00032,4]
[326761158,1715328639352,-263.8,0.00032479,7]
[326761159,1715328639361,-501.5060463,0.00033822,2]
[326761160,1715328639372,-467.00386112,0.00034,4]
[326761161,1715328639382,-2000.0,0.000348,21]
[326761162,1715328639392,-154.7215013,0.00035,4]
[326761163,1715328639403,-167.343888,0.00035011,2]
[326761164,1715328639413,-1006.08472962,0.00035372,2]
[326761165,1715328639541,-548.41974389,0.000356,30]
[326761166,1715328639551,-224.689473,0.00035616,2]
[326761167,1715328639561,-151.0,0.00035616,2]
[326761168,1715328639570,-151.0,0.00035616,2]
[326761169,1715328639581,-151.0,0.00035616,2]
[326761170,1715328639590,-253.150368,0.00035616,120]
[326761171,1715328639600,-7916.74,0.00035616,3]
[326761172,1715328639609,-12360.66,0.00035616,3]
[326761173,1715328639619,-155.12188342,0.00036832,4]
[326761174,1715328639628,-12921.25488051,0.000369,15]
[326761175,1715328639638,-55555.0,0.000369,5]
[326761176,1715328639648,-151.0,0.000369,2]
[326761177,1715328639657,-151.0,0.000369,2]
[326761178,1715328639666,-152.024151,0.000369,2]
[326761179,1715328639675,-151.0,0.000369,2]
[326761180,1715328639685,-151.0,0.000369,2]
[326761181,1715328639694,-151.0,0.000369,2]
[326761182,1715328639703,-151.0,0.000369,2]
[326761183,1715328639712,-246.775334,0.000369,2]
[326761184,1715328639721,-151.0,0.000369,2]
[326761185,1715328639730,-158.143768,0.000369,2]
[326761186,1715328639739,-158.143768,0.000369,2]
[326761187,1715328639748,-786.158632,0.000369,2]
[326761188,1715328639757,-786.158632,0.000369,2]
[326761189,1715328639766,-1980.86570834,0.00037,2]
[326761190,1715328639775,-151.0,0.00037,2]
[326761191,1715328639784,-263.8,0.00037638,7]
[326761192,1715328639793,-500.0,0.00037796,4]
[326761193,1715328639802,-150.0,0.0003783,35]
[326761194,1715328639811,-151.0,0.00038356,2]
[326761195,1715328639821,-1542.32,0.00038356,10]
[326761196,1715328639831,-1542.32,0.00038356,10]
[326761197,1715328639841,-1542.32,0.00038356,10]
[326761198,1715328639851,-1542.32,0.00038356,10]
[326761199,1715328639861,-1542.32,0.00038356,10]
[326761200,1715328639871,-1542.32,0.00038356,10]
[326761201,1715328639881,-1542.32,0.00038356,10]
[326761202,1715328639890,-222.06198827,0.00038384,3]
[326761203,1715328639899,-1542.32,0.00038625,10]
[326761204,1715328639913,-151.0,0.00038626,2]
[326761205,1715328639923,-151.0,0.00038626,2]
[326761206,1715328639932,-163.192593,0.00038626,2]
[326761207,1715328639941,-163.192593,0.00038626,2]
[326761208,1715328639950,-151.0,0.00038626,2]
[326761209,1715328639959,-151.0,0.00038626,2]
[326761210,1715328639968,-290.346641,0.00038626,2]
[326761211,1715328639977,-290.346641,0.00038626,2]
[326761212,1715328639986,-931.559166,0.00038626,2]
[326761213,1715328639996,-931.559166,0.00038626,2]
[326761214,1715328640005,-151.0,0.00038626,2]
[326761215,1715328640014,-160.0,0.000387,19]
[326761216,1715328640024,-1542.32,0.00038713,10]
[326761217,1715328640033,-1542.32,0.00038713,10]
[326761218,1715328640043,-1542.32,0.00038713,10]
[326761219,1715328640052,-806.98954456,0.00038713,10]
[326761228,1715328640561,-735.33045544,0.00038713,10]
[326761229,1715328640571,-1542.32,0.00038713,10]
[326761230,1715328640580,-1542.32,0.00038713,10]
[326761231,1715328640589,-1542.32,0.00038713,10]
[326761232,1715328640599,-937.60954456,0.00038713,10]
[326761233,1715328641336,-296.6076,0.00038713,10]
[326761561,1715329372646,465.40109803,9.999e-05,2]
[326761565,1715329605365,-164.118529,0.0001589,2]
[326761566,1715329605390,-332.12120616,0.00016531,2]
[326761596,1715329832525,-905.41848869,0.00016429,2]
[326761599,1715329832537,-530.68111469,0.00016429,2]
[326761601,1715329832549,-1157.62377047,0.00016429,2]
[326761602,1715329832558,-2469.90235376,0.0001643,2]
[326761604,1715329832570,-1447.56350125,0.0001643,2]
[326761630,1715329838508,-3966.72579979,0.0001643,2]
[326761631,1715329838519,-406.21744257,0.00016532,2]
[326761632,1715329838530,-62525.03509015,0.00016535,2]
[326761633,1715329838540,-480.2207562,0.00016536,2]
[326761634,1715329838549,-23796.5324574,0.00016536,2]
[326761635,1715329838559,-263.937582,0.0001676,2]
[326761636,1715329838568,-284.426094,0.00017808,2]
[326761637,1715329838578,-279.77466347,0.00017809,2]
[326761638,1715329838587,-2520.32528191,0.00017811,2]
[326761639,1715329838597,-1493.78708353,0.00017813,2]
[326761640,1715329838606,-816.74367356,0.00017815,2]
[326761641,1715329838616,-155.12188342,0.00017874,2]
[326761642,1715329838625,-894.51331095,0.00018,2]
[326761643,1715329838635,-604.78532662,0.000185,2]
[326761644,1715329838644,-309.135423,0.00018813,2]
[326761645,1715329838654,-3056.17446337,0.00018813,2]
[326761646,1715329838664,-818.14050438,0.00018813,2]
[326761647,1715329838673,-769.97551352,0.0001882,2]
[326761648,1715329838683,-3351.25084494,0.00018899,2]
[326761649,1715329838693,-150.0,0.000189,2]
[326761650,1715329838702,-240.18857266,0.00019,2]
[326761651,1715329838711,-500.0,0.00019995,2]
[326761652,1715329838721,-500.0,0.00019995,2]
[326761653,1715329838730,-500.0,0.00019995,2]
[326761654,1715329838740,-500.0,0.00019995,2]
[326761655,1715329838749,-500.0,0.00019995,2]
[326761656,1715329838759,-500.0,0.00019995,2]
[326761657,1715329838768,-500.0,0.00019995,2]
[326761658,1715329838789,-500.0,0.00019995,2]
[326761659,1715329838799,-500.0,0.00019995,2]
[326761660,1715329838809,-500.0,0.00019995,2]
[326761661,1715329838819,-500.0,0.00019995,2]
[326761662,1715329838829,-500.0,0.00019995,2]
[326761663,1715329838839,-500.0,0.00019995,2]
[326761664,1715329838850,-500.0,0.00019995,2]
[326761665,1715329838861,-500.0,0.00019995,2]
[326761666,1715329838871,-500.0,0.00019995,2]
[326761667,1715329838881,-500.0,0.00019995,2]
[326761668,1715329838891,-500.0,0.00019995,2]
[326761669,1715329838902,-500.0,0.00019995,2]
[326761670,1715329838912,-500.0,0.00019995,2]
[326761671,1715329838922,-500.0,0.00019995,2]
[326761672,1715329838932,-500.0,0.00019995,2]
[326761673,1715329838943,-500.0,0.00019995,2]
[326761674,1715329838953,-500.0,0.00019995,2]
[326761675,1715329838963,-500.0,0.00019995,2]
[326761676,1715329838973,-500.0,0.00019995,2]
[326761677,1715329838984,-500.0,0.00019995,2]
[326761678,1715329838994,-500.0,0.00019995,2]
[326761679,1715329839004,-500.0,0.00019995,2]
[326761680,1715329839014,-500.0,0.00019995,2]
[326761681,1715329839024,-500.0,0.00019995,2]
[326761682,1715329839035,-500.0,0.00019995,2]
[326761683,1715329839046,-500.0,0.00019995,2]
[326761684,1715329839058,-500.0,0.00019995,2]
[326761685,1715329839070,-500.0,0.00019995,2]
[326761686,1715329839082,-500.0,0.00019995,2]
[326761687,1715329839093,-500.0,0.00019995,2]
[326761688,1715329839107,-500.0,0.00019995,2]
[326761689,1715329839118,-500.0,0.00019995,2]
[326761690,1715329839129,-500.0,0.00019995,2]
[326761691,1715329839140,-503.71576268,0.00019995,2]
[326761692,1715329839151,-500.0,0.00019995,2]
[326761693,1715329839162,-500.0,0.00019995,2]
[326761694,1715329839173,-500.0,0.00019995,2]
[326761696,1715329839183,-500.0,0.00019995,2]
[326761698,1715329839194,-500.0,0.00019995,2]
[326761700,1715329839206,-500.0,0.00019995,2]
[326761702,1715329839218,-500.0,0.00019995,2]
[326761704,1715329839230,-500.0,0.00019995,2]
[326761706,1715329839241,-500.0,0.00019995,2]
[326761708,1715329839252,-500.0,0.00019995,2]
[326761710,1715329839264,-500.0,0.00019995,2]
[326761712,1715329839276,-500.0,0.00019995,2]
[326761714,1715329839287,-500.0,0.00019995,2]
[326761716,1715329839298,-500.0,0.00019995,2]
[326761718,1715329839310,-500.0,0.00019995,2]
[326761720,1715329839321,-500.0,0.00019995,2]
[326761722,1715329839332,-500.0,0.00019995,2]
[326761724,1715329839343,-500.0,0.00019995,2]
[326761726,1715329839353,-500.0,0.00019995,2]
[326761729,1715329839369,-500.0,0.00019995,2]
[326761731,1715329839380,-500.0,0.00019995,2]
[326761733,1715329839390,-500.0,0.00019995,2]
[326761735,1715329839401,-500.0,0.00019995,2]
[326761737,1715329839411,-500.0,0.00019995,2]
[326761739,1715329839421,-1558.94506613,0.0002,2]
[326761741,1715329839433,-380.05955451,0.0002,2]
[326761743,1715329839449,-3016.60000004,0.0002,2]
[326761745,1715329839459,-200.0,0.0002,2]
[326761747,1715329839469,-1348.61247082,0.00020908,2]
[326761749,1715329839479,-154.84423191,0.00020911,2]
[326761751,1715329839489,-500.0,0.00020912,2]
[326761753,1715329839499,-500.0,0.00020912,2]
[326761755,1715329839509,-500.0,0.00020912,2]
[326761757,1715329839521,-500.0,0.00020912,2]
[326761759,1715329839532,-500.0,0.00020912,2]
[326761761,1715329839543,-500.0,0.00020912,2]
[326761763,1715329839554,-500.0,0.00020912,2]
[326761765,1715329839564,-500.0,0.00020912,2]
[326761767,1715329839574,-500.0,0.00020912,2]
[326761769,1715329839585,-500.0,0.00020912,2]
[326761771,1715329839596,-500.0,0.00020912,2]
[326761773,1715329839611,-500.0,0.00020912,2]
[326761775,1715329839622,-536.24941709,0.00020912,2]
[326761777,1715329839632,-500.0,0.00020912,2]
[326761779,1715329839642,-38283.76661836,0.00020913,2]
[326761892,1715329840764,-1877.08072345,0.00020913,2]
[326762006,1715329841861,-632.55795376,0.00020913,2]
[326762924,1715329898909,770.55057017,0.00014878,2]
[326762925,1715329922873,583.44842813,0.00014878,2]
[326762926,1715329922896,185.95202874,0.00014878,2]
[326762927,1715329955113,1465.79568205,0.0001,2]
[326762928,1715329965220,1336.81700769,9.999e-05,2]
[326762929,1715329974410,1681.2123987,0.00015,2]
[326762930,1715330047920,154.70605849,0.00014914,2]
[326762931,1715330063915,155.12188342,0.00014914,2]
[326762932,1715330068226,292.24630135,9.999e-05,2]
[326762933,1715330072422,24900.0,0.00014513,2]
[326762936,1715330117328,154.70605849,9.999e-05,2]
[326762937,1715330140432,718.98711623,9.999e-05,2]
[326762938,1715330142202,543.08549708,9.999e-05,2]
[326762939,1715330143196,206.84585849,9.999e-05,2]
[326762940,1715330161957,521.80523456,9.999e-05,2]
[326762941,1715330171814,407.14512547,9.999e-05,2]
[326762942,1715330184577,109.86216124,9.999e-05,2]
[326762943,1715330184654,983.46612121,9.999e-05,2]
[326762944,1715330222613,281.12635245,9.999e-05,2]
[326762945,1715330234846,904.53581118,9.999e-05,2]
[326762946,1715330238649,330.512254,9.999e-05,2]
[326762947,1715330240551,257.01669087,9.999e-05,2]
[326762948,1715330294669,816.97434546,9.999e-05,2]
[326762949,1715330306707,154.70605849,9.999e-05,2]
[326762950,1715330313902,1348.61247082,9.999e-05,2]
[326762952,1715330424643,480.2207562,0.00014267,2]
[326762955,1715330500146,1494.22027638,9.999e-05,2]
[326762956,1715330517153,263.937582,0.00014266,2]
[326762957,1715330542213,23806.5324574,0.00014291,2]
[326762958,1715330546942,770.26830404,0.00013678,2]
[326762959,1715330554762,1624.38458646,9.999e-05,2]
[326762960,1715330562920,725.40204987,0.00013678,2]
[326762961,1715330583737,362.05699805,9.999e-05,2]
[326762962,1715330641930,584.46537033,9.999e-05,2]
[326762963,1715330746052,154.70605849,9.999e-05,2]
[326762967,1715330893107,501.5060463,0.00015002,2]
[326762968,1715330910456,234.6140841,0.00015002,2]
[326762970,1715330958190,-2674.97171764,0.00015087,2]
[326762971,1715330958212,-2945.47098281,0.00015087,2]
[326762972,1715330995316,22002.2552886,0.00014125,2]
[326762973,1715331013849,263.937582,0.00014097,2]
[326762974,1715331031718,301.71416504,9.999e-05,2]
[326763017,1715331032720,-3057.36000381,0.00015083,2]
[326763019,1715331032729,-3457.70192986,0.00015084,2]
[326763020,1715331032739,-2593.72337385,0.00015085,2]
[326763033,1715331032871,-830.9479584,0.000151,2]
[326763035,1715331032882,-36358.3729734,0.00015101,2]
[326763098,1715331038733,-4215.57072464,0.00015101,2]
[326763100,1715331038854,-21951.09139211,0.00015101,2]
[326763101,1715331038865,-155.91488492,0.00015102,2]
[326763103,1715331038875,-686.71357361,0.00015197,2]
[326763104,1715331038885,-959.14535877,0.00015198,2]
[326763105,1715331038894,-601.78459399,0.00015305,2]
[326763106,1715331038903,-569.72445016,0.00015306,2]
[326763107,1715331038912,-303.71533811,0.00015307,2]
[326763108,1715331038921,-7884.1916548,0.00015309,2]
[326763109,1715331038929,-1376.70461185,0.00015309,2]
[326763110,1715331038938,-817.97918943,0.0001531,2]
[326763111,1715331038947,-10198.62888009,0.00015312,2]
[326763112,1715331038956,-429.43251162,0.00015314,2]
[326763113,1715331038966,-1093.78568774,0.00015315,2]
[326763114,1715331038976,-158.13417593,0.00015318,2]
[326763115,1715331038986,-3830.91278375,0.00015318,2]
[326763116,1715331038996,-1893.19317664,0.00015318,2]
[326763117,1715331039005,-340.79875434,0.00015318,2]
[326763118,1715331039014,-217.55759055,0.00015318,2]
[326763119,1715331039023,-744.35757128,0.00015318,2]
[326763120,1715331039033,-181.75596962,0.00015318,2]
[326763121,1715331039042,-154.7215013,0.00015318,2]
[326763122,1715331039051,-155.14802321,0.00015318,2]
[326763123,1715331039060,-527.42048756,0.00015318,2]
[326763124,1715331039069,-309.16301887,0.00015318,2]
[326763125,1715331039079,-907.91075874,0.00015318,2]
[326763126,1715331039088,-154.94365812,0.00015318,2]
[326763127,1715331039098,-186.41667046,0.00015318,2]
[326763128,1715331039107,-236.07687408,0.00015318,2]
[326763129,1715331039116,-155.22769961,0.00015318,2]
[326763130,1715331039126,-940.45532708,0.00015318,2]
[326763131,1715331039136,-469.39449574,0.00015318,2]
[326763132,1715331039145,-262.93898204,0.00015318,2]
[326763133,1715331039155,-717.78236322,0.00015318,2]
[326763134,1715331039165,-1642.31272733,0.00015319,2]
[326763135,1715331039175,-901.60044345,0.00015319,2]
[326763136,1715331039184,-154.7215013,0.00015319,2]
[326763137,1715331039194,-444.85155138,0.00015705,2]
[326763138,1715331039203,-234.6140841,0.00016021,2]
[326763139,1715331039212,-1689.23876867,0.00016526,2]
[326763140,1715331039222,-513.05687597,0.00016527,2]
[326763141,1715331039231,-355.25334749,0.00016528,2]
[326763142,1715331039240,-52906.80876729,0.00016529,2]
[326763143,1715331039250,-818.14050438,0.00016531,2]
[326763144,1715331039260,-284.426094,0.00016531,2]
[326763145,1715331039269,-156.18286297,0.00016531,2]
[326763146,1715331039278,-234.6140841,0.0001704,2]
[326763147,1715331039288,-894.51331095,0.00018,2]
[326763148,1715331039298,-154.84423191,0.00018,2]
[326763149,1715331039309,-234.6140841,0.00018059,2]
[326763150,1715331039319,-604.78532662,0.000185,2]
[326763151,1715331039328,-1849.29606174,0.000189,2]
[326763152,1715331039338,-154.70605849,0.00019,2]
[326763153,1715331039347,-234.6140841,0.00019078,2]
[326763154,1715331039357,-500.0,0.00019178,2]
[326763155,1715331039366,-500.0,0.00019178,2]
[326763156,1715331039376,-500.0,0.00019178,2]
[326763157,1715331039385,-500.0,0.00019178,2]
[326763158,1715331039395,-500.0,0.00019178,2]
[326763159,1715331039404,-500.0,0.00019178,2]
[326763160,1715331039414,-500.0,0.00019178,2]
[326763161,1715331039423,-500.0,0.00019178,2]
[326763162,1715331039432,-500.0,0.00019178,2]
[326763163,1715331039442,-500.0,0.00019178,2]
[326763164,1715331039451,-500.0,0.00019178,2]
[326763165,1715331039460,-500.0,0.00019178,2]
[326763166,1715331039469,-500.0,0.00019178,2]
[326763167,1715331039479,-500.0,0.00019178,2]
[326763168,1715331039489,-500.0,0.00019178,2]
[326763169,1715331039498,-500.0,0.00019178,2]
[326763170,1715331039508,-500.0,0.00019178,2]
[326763171,1715331039518,-500.0,0.00019178,2]
[326763172,1715331039527,-500.0,0.00019178,2]
[326763173,1715331039537,-500.0,0.00019178,2]
[326763174,1715331039546,-500.0,0.00019178,2]
[326763175,1715331039556,-500.0,0.00019178,2]